[Event "December 5 Early 2023"]
[Site "https://www.chess.com"]
[Date "2023.12.05"]
[Round "3"]
[White "Kislinsky, Alexey"]
[Black "Urbina Perez, Juan Antonio"]
[Result "1/2-1/2"]
[Board "94"]
[TimeControl "180+1"]
[WhiteFideId "14108801"]
[BlackFideId "2217368"]
[WhiteElo "2717"]
[BlackElo "2506"]
[WhiteTeam "CZE"]
[BlackTeam "ESP"]
[WhiteClock "0:00:11"]
[BlackClock "0:00:30"]

1. e4 {[%clk 0:03:00]}  e5 {[%clk 0:02:56]} 2. Nf3 {[%clk 0:02:58]}  Nf6 {[%clk 0:02:55]} 3. Nxe5 {[%clk 0:02:47]}  d6 {[%clk 0:02:54]} 4. Nf3 {[%clk 0:02:46]}  Nxe4 {[%clk 0:02:54]} 5. Nc3 {[%clk 0:02:47]}  Nxc3 {[%clk 0:02:54]} 6. dxc3 {[%clk 0:02:48]}  Be7 {[%clk 0:02:54]} 7. Be3 {[%clk 0:02:48]}  Be6 {[%clk 0:02:55]} 8. Qd2 {[%clk 0:02:49]}  Nc6 {[%clk 0:02:55]} 9. O-O-O {[%clk 0:02:49]}  Qd7 {[%clk 0:02:55]} 10. Kb1 {[%clk 0:02:45]}  a6 {[%clk 0:02:55]} 11. h3 {[%clk 0:02:38]}  h6 {[%clk 0:02:55]} 12. g4 {[%clk 0:02:37]}  O-O-O {[%clk 0:02:55]} 13. Bg2 {[%clk 0:02:37]}  Kb8 {[%clk 0:02:55]} 14. Nd4 {[%clk 0:02:36]}  Nxd4 {[%clk 0:02:45]} 15. Qxd4 {[%clk 0:02:36]}  c5 {[%clk 0:02:39]} 16. Qf4 {[%clk 0:02:36]}  Qc7 {[%clk 0:02:33]} 17. Qg3 {[%clk 0:02:25]}  Rhe8 {[%clk 0:02:25]} 18. Rhe1 {[%clk 0:02:24]}  Bf8 {[%clk 0:02:20]} 19. f4 {[%clk 0:02:23]}  f6 {[%clk 0:02:19]} 20. f5 {[%clk 0:02:16]}  Bf7 {[%clk 0:02:17]} 21. Bf4 {[%clk 0:02:17]}  Rxe1 {[%clk 0:02:17]} 22. Rxe1 {[%clk 0:02:18]}  Re8 {[%clk 0:02:15]} 23. Rxe8+ {[%clk 0:02:17]}  Bxe8 {[%clk 0:02:16]} 24. Bd5 {[%clk 0:02:17]}  Bc6 {[%clk 0:02:13]} 25. Qd3 {[%clk 0:02:15]}  Ka7 {[%clk 0:02:04]} 26. c4 {[%clk 0:02:11]}  Bxd5 {[%clk 0:02:03]} 27. Qxd5 {[%clk 0:02:11]}  Qe7 {[%clk 0:01:57]} 28. a3 {[%clk 0:01:54]}  Qe1+ {[%clk 0:01:39]} 29. Ka2 {[%clk 0:01:54]}  Qe7 {[%clk 0:01:37]} 30. Qd3 {[%clk 0:01:35]}  Kb6 {[%clk 0:01:27]} 31. b4 {[%clk 0:01:34]}  Ka7 {[%clk 0:01:24]} 32. Kb3 {[%clk 0:01:30]}  Kb6 {[%clk 0:01:23]} 33. Qd5 {[%clk 0:01:12]}  Ka7 {[%clk 0:01:21]} 34. Qe6 {[%clk 0:01:07]}  Qxe6 {[%clk 0:01:15]} 35. fxe6 {[%clk 0:01:08]}  Kb6 {[%clk 0:01:14]} 36. Kc3 {[%clk 0:00:34]}  Kc6 {[%clk 0:01:12]} 37. bxc5 {[%clk 0:00:33]}  Kxc5 {[%clk 0:01:08]} 38. Be3+ {[%clk 0:00:32]}  Kc6 {[%clk 0:01:05]} 39. Kd4 {[%clk 0:00:33]}  b5 {[%clk 0:01:01]} 40. cxb5+ {[%clk 0:00:33]}  axb5 {[%clk 0:01:02]} 41. Ke4 {[%clk 0:00:34]}  d5+ {[%clk 0:00:59]} 42. Kf5 {[%clk 0:00:34]}  Bxa3 {[%clk 0:00:57]} 43. Kg6 {[%clk 0:00:34]}  Kd6 {[%clk 0:00:56]} 44. Kf7 {[%clk 0:00:34]}  Ke5 {[%clk 0:00:47]} 45. Bc1 {[%clk 0:00:17]}  Bc5 {[%clk 0:00:43]} 46. Bb2+ {[%clk 0:00:15]}  Kf4 {[%clk 0:00:42]} 47. Kxg7 {[%clk 0:00:15]}  f5 {[%clk 0:00:39]} 48. gxf5 {[%clk 0:00:12]}  Kxf5 {[%clk 0:00:40]} 49. Kf7 {[%clk 0:00:13]}  Kf4 {[%clk 0:00:36]} 50. Bg7 {[%clk 0:00:13]}  Kg3 {[%clk 0:00:29]} 51. Bxh6 {[%clk 0:00:12]}  Kxh3 {[%clk 0:00:29]} 52. Be3 {[%clk 0:00:12]}  Bd6 {[%clk 0:00:28]} 53. e7 {[%clk 0:00:12]}  Bxe7 {[%clk 0:00:28]} 54. Kxe7 {[%clk 0:00:13]}  Kg4 {[%clk 0:00:28]} 55. Kd6 {[%clk 0:00:13]}  Kf3 {[%clk 0:00:29]} 56. Bc5 {[%clk 0:00:12]}  Ke4 {[%clk 0:00:29]} 57. Bb4 {[%clk 0:00:12]}  d4 {[%clk 0:00:29]} 58. Kc5 {[%clk 0:00:11]}  d3 {[%clk 0:00:29]} 59. cxd3+ {[%clk 0:00:10]}  Kxd3 {[%clk 0:00:30]} 60. Kxb5 {[%clk 0:00:11]} 1/2-1/2

[Event "December 5 Early 2023"]
[Site "https://www.chess.com"]
[Date "2023.12.05"]
[Round "3"]
[White "Timmermans, Mark"]
[Black "Leyva Proenza, Richard"]
[Result "0-1"]
[Board "95"]
[TimeControl "180+1"]
[WhiteFideId "1026399"]
[BlackFideId "3500985"]
[WhiteElo "2713"]
[BlackElo "2491"]
[WhiteTeam "NED"]
[BlackTeam "VEN"]
[WhiteClock "0:00:03"]
[BlackClock "0:00:04"]

1. b4 {[%clk 0:02:59]}  b6 {[%clk 0:02:58]} 2. Bb2 {[%clk 0:03:00]}  Bb7 {[%clk 0:02:58]} 3. e3 {[%clk 0:03:00]}  e6 {[%clk 0:02:58]} 4. c4 {[%clk 0:03:00]}  Nf6 {[%clk 0:02:58]} 5. b5 {[%clk 0:03:00]}  c6 {[%clk 0:02:57]} 6. Nf3 {[%clk 0:03:00]}  cxb5 {[%clk 0:02:54]} 7. cxb5 {[%clk 0:03:01]}  Be7 {[%clk 0:02:53]} 8. a4 {[%clk 0:03:01]}  O-O {[%clk 0:02:52]} 9. Be2 {[%clk 0:03:01]}  d6 {[%clk 0:02:46]} 10. O-O {[%clk 0:03:00]}  Nbd7 {[%clk 0:02:40]} 11. d4 {[%clk 0:03:00]}  Ne4 {[%clk 0:02:35]} 12. Nfd2 {[%clk 0:02:57]}  Ndf6 {[%clk 0:02:29]} 13. Bf3 {[%clk 0:02:54]}  Nxd2 {[%clk 0:02:23]} 14. Nxd2 {[%clk 0:02:55]}  Bxf3 {[%clk 0:02:22]} 15. Qxf3 {[%clk 0:02:54]}  d5 {[%clk 0:02:15]} 16. Rfc1 {[%clk 0:02:53]}  a6 {[%clk 0:01:38]} 17. Qe2 {[%clk 0:02:52]}  axb5 {[%clk 0:01:14]} 18. axb5 {[%clk 0:02:53]}  Bb4 {[%clk 0:01:07]} 19. Nf3 {[%clk 0:02:51]}  Ne4 {[%clk 0:01:04]} 20. Ne5 {[%clk 0:02:50]}  Bd6 {[%clk 0:01:02]} 21. Nc6 {[%clk 0:02:50]}  Qd7 {[%clk 0:01:03]} 22. f3 {[%clk 0:02:44]}  Nf6 {[%clk 0:01:02]} 23. Qc2 {[%clk 0:02:33]}  Rfe8 {[%clk 0:01:02]} 24. Ra4 {[%clk 0:02:32]}  Rxa4 {[%clk 0:00:59]} 25. Qxa4 {[%clk 0:02:33]}  h5 {[%clk 0:00:57]} 26. Qa6 {[%clk 0:02:27]}  Qc7 {[%clk 0:00:57]} 27. Ne5 {[%clk 0:02:26]}  Qb8 {[%clk 0:00:56]} 28. Rc6 {[%clk 0:02:09]}  Bxe5 {[%clk 0:00:56]} 29. dxe5 {[%clk 0:02:08]}  Nd7 {[%clk 0:00:57]} 30. f4 {[%clk 0:02:07]}  g6 {[%clk 0:00:33]} 31. Bd4 {[%clk 0:02:01]}  Qd8 {[%clk 0:00:28]} 32. Bxb6 {[%clk 0:01:58]}  Qh4 {[%clk 0:00:28]} 33. g3 {[%clk 0:01:58]}  Qg4 {[%clk 0:00:28]} 34. Qa1 {[%clk 0:01:39]}  Rb8 {[%clk 0:00:26]} 35. Qd4 {[%clk 0:01:02]}  Ra8 {[%clk 0:00:24]} 36. Ba7 {[%clk 0:01:02]}  h4 {[%clk 0:00:22]} 37. Kf2 {[%clk 0:00:48]}  Qh3 {[%clk 0:00:22]} 38. gxh4 {[%clk 0:00:40]}  Qxh2+ {[%clk 0:00:22]} 39. Ke1 {[%clk 0:00:41]}  Kg7 {[%clk 0:00:13]} 40. Rc1 {[%clk 0:00:35]}  Qxh4+ {[%clk 0:00:12]} 41. Kd2 {[%clk 0:00:35]}  Qf2+ {[%clk 0:00:12]} 42. Kd3 {[%clk 0:00:34]}  Qa2 {[%clk 0:00:11]} 43. b6 {[%clk 0:00:32]}  Qb3+ {[%clk 0:00:09]} 44. Ke2 {[%clk 0:00:26]}  Nxb6 {[%clk 0:00:09]} 45. Bxb6 {[%clk 0:00:25]}  Ra2+ {[%clk 0:00:08]} 46. Kf3 {[%clk 0:00:21]}  Qb5 {[%clk 0:00:07]} 47. Re1 {[%clk 0:00:17]}  Qb3 {[%clk 0:00:04]} 48. Bd8 {[%clk 0:00:17]}  Qc2 {[%clk 0:00:03]} 49. Bf6+ {[%clk 0:00:10]}  Kg8 {[%clk 0:00:04]} 50. Kg4 {[%clk 0:00:02]}  Qg2+ {[%clk 0:00:04]} 51. Kh4 {[%clk 0:00:02]}  Qh2+ {[%clk 0:00:04]} 52. Kg4 {[%clk 0:00:02]}  Rg2+ {[%clk 0:00:04]} 53. Kf3 {[%clk 0:00:03]}  Qg3# {[%clk 0:00:04]} 0-1

[Event "December 5 Early 2023"]
[Site "https://www.chess.com"]
[Date "2023.12.05"]
[Round "3"]
[White "Pakleza, Zbigniew"]
[Black "Kovalevsky, Stanislav"]
[Result "1-0"]
[Board "97"]
[TimeControl "180+1"]
[WhiteFideId "1119290"]
[BlackFideId "13508598"]
[WhiteElo "2709"]
[BlackElo "2490"]
[WhiteTeam "POL"]
[BlackTeam "FID"]
[WhiteClock "0:00:04"]
[BlackClock "0:00:00"]

1. d4 {[%clk 0:03:00]}  d5 {[%clk 0:02:37]} 2. Nf3 {[%clk 0:03:00]}  Nf6 {[%clk 0:02:36]} 3. Bf4 {[%clk 0:03:00]}  c6 {[%clk 0:02:36]} 4. c3 {[%clk 0:03:01]}  Ne4 {[%clk 0:02:36]} 5. Nbd2 {[%clk 0:02:59]}  f5 {[%clk 0:02:34]} 6. e3 {[%clk 0:02:57]}  e6 {[%clk 0:02:35]} 7. Ne5 {[%clk 0:02:58]}  Qf6 {[%clk 0:02:22]} 8. h4 {[%clk 0:02:50]}  g6 {[%clk 0:01:57]} 9. g4 {[%clk 0:02:34]}  Nd7 {[%clk 0:01:54]} 10. g5 {[%clk 0:02:29]}  Qg7 {[%clk 0:01:47]} 11. h5 {[%clk 0:02:27]}  Rg8 {[%clk 0:01:24]} 12. Ndf3 {[%clk 0:01:57]}  Nxe5 {[%clk 0:01:17]} 13. Nxe5 {[%clk 0:01:52]}  Be7 {[%clk 0:01:09]} 14. hxg6 {[%clk 0:01:32]}  hxg6 {[%clk 0:01:08]} 15. Rg1 {[%clk 0:01:32]}  Qh8 {[%clk 0:00:54]} 16. Qf3 {[%clk 0:01:28]}  Qh4 {[%clk 0:00:50]} 17. Qg2 {[%clk 0:01:10]}  Qh8 {[%clk 0:00:18]} 18. O-O-O {[%clk 0:01:10]}  Bd7 {[%clk 0:00:17]} 19. f3 {[%clk 0:01:11]}  Nd6 {[%clk 0:00:16]} 20. Rh1 {[%clk 0:01:09]}  Qg7 {[%clk 0:00:16]} 21. Rh6 {[%clk 0:01:03]}  O-O-O {[%clk 0:00:13]} 22. Nxg6 {[%clk 0:00:54]}  Qxg6 {[%clk 0:00:14]} 23. Rxg6 {[%clk 0:00:55]}  Rxg6 {[%clk 0:00:15]} 24. Qh2 {[%clk 0:00:46]}  Nf7 {[%clk 0:00:15]} 25. Qh7 {[%clk 0:00:45]}  Rdg8 {[%clk 0:00:08]} 26. Bd3 {[%clk 0:00:25]}  R6g7 {[%clk 0:00:07]} 27. Qh2 {[%clk 0:00:19]}  Nxg5 {[%clk 0:00:06]} 28. Qe2 {[%clk 0:00:15]}  Nh3 {[%clk 0:00:04]} 29. Be5 {[%clk 0:00:15]}  Rg2 {[%clk 0:00:04]} 30. Qe1 {[%clk 0:00:13]}  Nf2 {[%clk 0:00:03]} 31. Bf1 {[%clk 0:00:10]}  Nxd1 {[%clk 0:00:02]} 32. Bxg2 {[%clk 0:00:11]}  Rxg2 {[%clk 0:00:01]} 33. Qxd1 {[%clk 0:00:09]}  Bh4 {[%clk 0:00:00]} 34. Qh1 {[%clk 0:00:04]} 1-0

[Event "December 5 Early 2023"]
[Site "https://www.chess.com"]
[Date "2023.12.05"]
[Round "3"]
[White "Sadykov, Ramil"]
[Black "Kopczynski, Michal"]
[Result "0-1"]
[Board "98"]
[TimeControl "180+1"]
[WhiteFideId "24113590"]
[BlackFideId "1124200"]
[WhiteElo "2702"]
[BlackElo "2488"]
[WhiteTeam "FID"]
[BlackTeam "POL"]
[WhiteClock "0:00:00"]
[BlackClock "0:00:06"]

1. e4 {[%clk 0:03:00]}  b6 {[%clk 0:02:59]} 2. d4 {[%clk 0:03:00]}  Bb7 {[%clk 0:03:00]} 3. Bd3 {[%clk 0:03:01]}  e6 {[%clk 0:03:01]} 4. Nf3 {[%clk 0:03:01]}  Nf6 {[%clk 0:03:01]} 5. Qe2 {[%clk 0:03:01]}  d5 {[%clk 0:03:02]} 6. e5 {[%clk 0:03:01]}  Nfd7 {[%clk 0:03:03]} 7. c3 {[%clk 0:02:57]}  c5 {[%clk 0:03:03]} 8. h4 {[%clk 0:02:53]}  Nc6 {[%clk 0:03:04]} 9. a3 {[%clk 0:02:48]}  Qc7 {[%clk 0:03:04]} 10. Be3 {[%clk 0:02:40]}  O-O-O {[%clk 0:03:04]} 11. h5 {[%clk 0:02:40]}  h6 {[%clk 0:03:04]} 12. Nbd2 {[%clk 0:02:36]}  f6 {[%clk 0:03:03]} 13. Bf4 {[%clk 0:02:29]}  fxe5 {[%clk 0:02:59]} 14. dxe5 {[%clk 0:02:28]}  Be7 {[%clk 0:02:52]} 15. O-O-O {[%clk 0:02:12]}  Rhf8 {[%clk 0:02:50]} 16. Bg3 {[%clk 0:02:11]}  Kb8 {[%clk 0:02:37]} 17. Kb1 {[%clk 0:02:10]}  c4 {[%clk 0:02:36]} 18. Bc2 {[%clk 0:02:06]}  b5 {[%clk 0:02:35]} 19. Nh4 {[%clk 0:01:56]}  Bc5 {[%clk 0:02:20]} 20. Ng6 {[%clk 0:01:54]}  Rf7 {[%clk 0:02:19]} 21. f4 {[%clk 0:01:51]}  a5 {[%clk 0:02:16]} 22. f5 {[%clk 0:01:42]}  Nf8 {[%clk 0:02:11]} 23. Rhf1 {[%clk 0:01:25]}  d4 {[%clk 0:02:04]} 24. Nxf8 {[%clk 0:01:16]}  d3 {[%clk 0:01:50]} 25. Nxe6 {[%clk 0:00:56]}  dxe2 {[%clk 0:01:49]} 26. Nxc7 {[%clk 0:00:56]}  exf1=Q {[%clk 0:01:34]} 27. Rxf1 {[%clk 0:00:37]}  Rxd2 {[%clk 0:01:11]} 28. Nxb5 {[%clk 0:00:29]}  Rf8 {[%clk 0:01:02]} 29. f6 {[%clk 0:00:20]}  Rxg2 {[%clk 0:00:58]} 30. Bf4 {[%clk 0:00:08]}  gxf6 {[%clk 0:00:53]} 31. e6+ {[%clk 0:00:08]}  Kc8 {[%clk 0:00:46]} 32. Bxh6 {[%clk 0:00:08]}  Rh8 {[%clk 0:00:43]} 33. Rxf6 {[%clk 0:00:06]}  Ne7 {[%clk 0:00:35]} 34. Bf4 {[%clk 0:00:02]}  Nd5 {[%clk 0:00:22]} 35. Rf7 {[%clk 0:00:02]}  Nxf4 {[%clk 0:00:21]} 36. Rxf4 {[%clk 0:00:02]}  Rxh5 {[%clk 0:00:19]} 37. Rxc4 {[%clk 0:00:03]}  Rh1+ {[%clk 0:00:17]} 38. Ka2 {[%clk 0:00:03]}  Bd5 {[%clk 0:00:18]} 39. Bb3 {[%clk 0:00:03]}  Bxc4 {[%clk 0:00:16]} 40. Bxc4 {[%clk 0:00:04]}  Rhh2 {[%clk 0:00:16]} 41. Kb3 {[%clk 0:00:04]}  Rxb2+ {[%clk 0:00:15]} 42. Ka4 {[%clk 0:00:04]}  Rbc2 {[%clk 0:00:15]} 43. Kxa5 {[%clk 0:00:04]}  Rxc3 {[%clk 0:00:15]} 44. Nxc3 {[%clk 0:00:04]}  Bxa3 {[%clk 0:00:15]} 45. Ne4 {[%clk 0:00:03]}  Be7 {[%clk 0:00:13]} 46. Kb5 {[%clk 0:00:03]}  Rh4 {[%clk 0:00:13]} 47. Bd5 {[%clk 0:00:03]}  Kc7 {[%clk 0:00:13]} 48. Kc4 {[%clk 0:00:02]}  Rh1 {[%clk 0:00:11]} 49. Kd4 {[%clk 0:00:03]}  Rc1 {[%clk 0:00:12]} 50. Ke5 {[%clk 0:00:03]}  Re1 {[%clk 0:00:12]} 51. Kf5 {[%clk 0:00:03]}  Rd1 {[%clk 0:00:12]} 52. Ke5 {[%clk 0:00:03]}  Re1 {[%clk 0:00:11]} 53. Bc4 {[%clk 0:00:03]}  Bd6+ {[%clk 0:00:10]} 54. Kf5 {[%clk 0:00:02]}  Be7 {[%clk 0:00:08]} 55. Nc3 {[%clk 0:00:00]}  Rc1 {[%clk 0:00:06]} 0-1

[Event "December 5 Early 2023"]
[Site "https://www.chess.com"]
[Date "2023.12.05"]
[Round "3"]
[White "Boyer, Mahel"]
[Black "Filali, Razzouki Marouane"]
[Result "1-0"]
[Board "99"]
[TimeControl "180+1"]
[WhiteFideId "45102422"]
[BlackFideId "9003720"]
[WhiteElo "2700"]
[BlackElo "2487"]
[WhiteTeam "FRA"]
[BlackTeam "MAR"]
[WhiteClock "0:00:03"]
[BlackClock "0:00:14"]

1. e4 {[%clk 0:02:47]}  c6 {[%clk 0:02:57]} 2. c4 {[%clk 0:02:44]}  d5 {[%clk 0:02:56]} 3. cxd5 {[%clk 0:02:45]}  cxd5 {[%clk 0:02:57]} 4. exd5 {[%clk 0:02:46]}  Qxd5 {[%clk 0:02:56]} 5. Nc3 {[%clk 0:02:47]}  Qd8 {[%clk 0:02:56]} 6. d4 {[%clk 0:02:47]}  Nf6 {[%clk 0:02:57]} 7. Nf3 {[%clk 0:02:47]}  e6 {[%clk 0:02:57]} 8. Bd3 {[%clk 0:02:47]}  Be7 {[%clk 0:02:56]} 9. O-O {[%clk 0:02:47]}  O-O {[%clk 0:02:56]} 10. Qe2 {[%clk 0:02:46]}  Re8 {[%clk 0:02:54]} 11. Rd1 {[%clk 0:02:43]}  Nbd7 {[%clk 0:02:51]} 12. Ne5 {[%clk 0:02:41]}  Bf8 {[%clk 0:02:47]} 13. Qf3 {[%clk 0:02:30]}  Nxe5 {[%clk 0:02:17]} 14. dxe5 {[%clk 0:02:00]}  Nd7 {[%clk 0:02:16]} 15. Bf4 {[%clk 0:01:42]}  Qa5 {[%clk 0:02:11]} 16. Ne4 {[%clk 0:01:15]}  g6 {[%clk 0:01:18]} 17. Rac1 {[%clk 0:00:34]}  Bg7 {[%clk 0:01:12]} 18. Nd6 {[%clk 0:00:32]}  Rf8 {[%clk 0:01:05]} 19. b4 {[%clk 0:00:20]}  Qb6 {[%clk 0:00:54]} 20. Qg3 {[%clk 0:00:13]}  Nb8 {[%clk 0:00:41]} 21. b5 {[%clk 0:00:11]}  Bd7 {[%clk 0:00:39]} 22. h4 {[%clk 0:00:07]}  h6 {[%clk 0:00:37]} 23. h5 {[%clk 0:00:04]}  g5 {[%clk 0:00:37]} 24. Be3 {[%clk 0:00:04]}  Qd8 {[%clk 0:00:33]} 25. Qf3 {[%clk 0:00:04]}  Bxe5 {[%clk 0:00:26]} 26. Qe4 {[%clk 0:00:04]}  f5 {[%clk 0:00:23]} 27. Qxe5 {[%clk 0:00:04]}  Qe7 {[%clk 0:00:23]} 28. Nxb7 {[%clk 0:00:02]}  Be8 {[%clk 0:00:20]} 29. Nd6 {[%clk 0:00:02]}  Nd7 {[%clk 0:00:20]} 30. Qd4 {[%clk 0:00:02]}  Rd8 {[%clk 0:00:20]} 31. Nb7 {[%clk 0:00:01]}  Rb8 {[%clk 0:00:19]} 32. Qxa7 {[%clk 0:00:02]}  Rd8 {[%clk 0:00:18]} 33. Nxd8 {[%clk 0:00:02]}  Qxd8 {[%clk 0:00:19]} 34. Bc4 {[%clk 0:00:02]}  Bf7 {[%clk 0:00:19]} 35. Rxd7 {[%clk 0:00:02]}  Qe8 {[%clk 0:00:19]} 36. Bb3 {[%clk 0:00:01]}  f4 {[%clk 0:00:18]} 37. Rcc7 {[%clk 0:00:02]}  fxe3 {[%clk 0:00:18]} 38. Qxe3 {[%clk 0:00:03]}  Qa8 {[%clk 0:00:14]} 39. Qe5 {[%clk 0:00:03]}  Qa3 {[%clk 0:00:13]} 40. Rxf7 {[%clk 0:00:03]}  Qc1+ {[%clk 0:00:14]} 41. Rxc1 {[%clk 0:00:02]}  Rxf7 {[%clk 0:00:13]} 42. Qxe6 {[%clk 0:00:03]}  Kf8 {[%clk 0:00:14]} 43. Qxf7# {[%clk 0:00:03]} 1-0

[Event "December 5 Early 2023"]
[Site "https://www.chess.com"]
[Date "2023.12.05"]
[Round "3"]
[White "Novozhilov, Semen"]
[Black "Grochal, Joey"]
[Result "1-0"]
[Board "100"]
[TimeControl "180+1"]
[WhiteFideId "24289167"]
[BlackFideId "1019945"]
[WhiteElo "2696"]
[BlackElo "2487"]
[WhiteTeam "RUS"]
[BlackTeam "NED"]
[WhiteClock "0:02:21"]
[BlackClock "0:02:09"]

1. d4 {[%clk 0:03:00]}  Nf6 {[%clk 0:02:58]} 2. Nf3 {[%clk 0:03:00]}  g6 {[%clk 0:02:58]} 3. Nc3 {[%clk 0:03:00]}  Bg7 {[%clk 0:02:59]} 4. e4 {[%clk 0:03:00]}  d6 {[%clk 0:03:00]} 5. Be3 {[%clk 0:03:01]}  c6 {[%clk 0:03:00]} 6. Qd2 {[%clk 0:03:01]}  Nbd7 {[%clk 0:02:59]} 7. Bd3 {[%clk 0:02:58]}  Qc7 {[%clk 0:02:55]} 8. O-O-O {[%clk 0:02:58]}  b5 {[%clk 0:02:54]} 9. Bh6 {[%clk 0:02:57]}  Bxh6 {[%clk 0:02:53]} 10. Qxh6 {[%clk 0:02:58]}  Qa5 {[%clk 0:02:46]} 11. e5 {[%clk 0:02:53]}  b4 {[%clk 0:02:46]} 12. exf6 {[%clk 0:02:48]}  bxc3 {[%clk 0:02:45]} 13. Qg7 {[%clk 0:02:48]}  Rf8 {[%clk 0:02:42]} 14. Rhe1 {[%clk 0:02:46]}  cxb2+ {[%clk 0:02:33]} 15. Kb1 {[%clk 0:02:45]}  e6 {[%clk 0:02:33]} 16. d5 {[%clk 0:02:40]}  cxd5 {[%clk 0:02:27]} 17. Ng5 {[%clk 0:02:38]}  Ba6 {[%clk 0:02:15]} 18. Rxe6+ {[%clk 0:02:22]}  Kd8 {[%clk 0:02:14]} 19. Rxd6 {[%clk 0:02:22]}  Kc7 {[%clk 0:02:09]} 20. Rxa6 {[%clk 0:02:21]} 1-0

[Event "December 5 Early 2023"]
[Site "https://www.chess.com"]
[Date "2023.12.05"]
[Round "3"]
[White "Mendoza, Rodrigo"]
[Black "Danielyan, Vahe"]
[Result "0-1"]
[Board "101"]
[TimeControl "180+1"]
[WhiteFideId "3301931"]
[BlackFideId "13304828"]
[WhiteElo "2487"]
[BlackElo "2676"]
[WhiteTeam "BOL"]
[BlackTeam "ARM"]
[WhiteClock "0:00:24"]
[BlackClock "0:02:12"]

1. d4 {[%clk 0:03:00]}  Nf6 {[%clk 0:02:59]} 2. Nf3 {[%clk 0:03:00]}  e6 {[%clk 0:02:58]} 3. c4 {[%clk 0:03:00]}  d5 {[%clk 0:02:58]} 4. Nc3 {[%clk 0:03:00]}  c6 {[%clk 0:02:58]} 5. e3 {[%clk 0:02:59]}  Be7 {[%clk 0:02:58]} 6. b3 {[%clk 0:02:59]}  Nbd7 {[%clk 0:02:57]} 7. Bb2 {[%clk 0:03:00]}  O-O {[%clk 0:02:58]} 8. Bd3 {[%clk 0:03:00]}  b6 {[%clk 0:02:58]} 9. O-O {[%clk 0:03:00]}  Bb7 {[%clk 0:02:59]} 10. Qe2 {[%clk 0:03:01]}  Qc7 {[%clk 0:02:51]} 11. Rac1 {[%clk 0:02:55]}  dxc4 {[%clk 0:02:51]} 12. Bxc4 {[%clk 0:02:53]}  c5 {[%clk 0:02:49]} 13. e4 {[%clk 0:02:53]}  cxd4 {[%clk 0:02:40]} 14. Nxd4 {[%clk 0:02:53]}  Nc5 {[%clk 0:02:40]} 15. f3 {[%clk 0:02:51]}  Rfd8 {[%clk 0:02:38]} 16. Rfd1 {[%clk 0:02:48]}  Rac8 {[%clk 0:02:33]} 17. e5 {[%clk 0:01:43]}  Nh5 {[%clk 0:02:33]} 18. Ncb5 {[%clk 0:01:23]}  Qb8 {[%clk 0:02:33]} 19. b4 {[%clk 0:01:24]}  Na4 {[%clk 0:02:23]} 20. Nxe6 {[%clk 0:00:44]}  Rxd1+ {[%clk 0:02:11]} 21. Rxd1 {[%clk 0:00:24]}  Nxb2 {[%clk 0:02:12]} 0-1

[Event "December 5 Early 2023"]
[Site "https://www.chess.com"]
[Date "2023.12.05"]
[Round "3"]
[White "Souleidis, Georgios"]
[Black "Iljin, Timofey"]
[Result "1-0"]
[Board "103"]
[TimeControl "180+1"]
[WhiteFideId "4206827"]
[BlackFideId "14110180"]
[WhiteElo "2668"]
[BlackElo "2482"]
[WhiteTeam "GRE"]
[BlackTeam "UKR"]
[WhiteClock "0:00:08"]
[BlackClock "0:00:00"]

1. e4 {[%clk 0:02:54]}  c5 {[%clk 0:02:59]} 2. Be2 {[%clk 0:02:53]}  g6 {[%clk 0:02:57]} 3. d3 {[%clk 0:02:52]}  Bg7 {[%clk 0:02:57]} 4. f4 {[%clk 0:02:53]}  d6 {[%clk 0:02:56]} 5. Nf3 {[%clk 0:02:54]}  Nc6 {[%clk 0:02:55]} 6. O-O {[%clk 0:02:53]}  Nh6 {[%clk 0:02:55]} 7. c3 {[%clk 0:02:53]}  O-O {[%clk 0:02:55]} 8. Kh1 {[%clk 0:02:51]}  f5 {[%clk 0:02:55]} 9. h3 {[%clk 0:02:29]}  Nf7 {[%clk 0:02:45]} 10. Be3 {[%clk 0:02:18]}  b6 {[%clk 0:02:42]} 11. Nbd2 {[%clk 0:02:06]}  Nh6 {[%clk 0:02:32]} 12. Rc1 {[%clk 0:01:54]}  Bb7 {[%clk 0:02:32]} 13. Ng5 {[%clk 0:01:50]}  Qc8 {[%clk 0:01:51]} 14. a3 {[%clk 0:01:18]}  Kh8 {[%clk 0:01:23]} 15. b4 {[%clk 0:01:13]}  e5 {[%clk 0:01:19]} 16. Qb3 {[%clk 0:01:04]}  exf4 {[%clk 0:00:48]} 17. Bxf4 {[%clk 0:01:03]}  Ne5 {[%clk 0:00:49]} 18. d4 {[%clk 0:00:46]}  c4 {[%clk 0:00:35]} 19. Bxc4 {[%clk 0:00:33]}  Nxc4 {[%clk 0:00:35]} 20. Nxc4 {[%clk 0:00:33]}  fxe4 {[%clk 0:00:20]} 21. Nxd6 {[%clk 0:00:33]}  Qd7 {[%clk 0:00:14]} 22. Nxb7 {[%clk 0:00:19]}  Qxb7 {[%clk 0:00:15]} 23. d5 {[%clk 0:00:19]}  Nf5 {[%clk 0:00:09]} 24. Ne6 {[%clk 0:00:18]}  Bh6 {[%clk 0:00:04]} 25. Bxh6 {[%clk 0:00:17]}  Ng3+ {[%clk 0:00:04]} 26. Kg1 {[%clk 0:00:16]}  Rxf1+ {[%clk 0:00:04]} 27. Rxf1 {[%clk 0:00:15]}  Nxf1 {[%clk 0:00:04]} 28. Kxf1 {[%clk 0:00:12]}  Qf7+ {[%clk 0:00:04]} 29. Kg1 {[%clk 0:00:12]}  a5 {[%clk 0:00:01]} 30. Be3 {[%clk 0:00:12]}  a4 {[%clk 0:00:02]} 31. Bd4+ {[%clk 0:00:12]}  Kg8 {[%clk 0:00:02]} 32. Qc2 {[%clk 0:00:12]}  Qf5 {[%clk 0:00:02]} 33. c4 {[%clk 0:00:07]}  Re8 {[%clk 0:00:01]} 34. Qf2 {[%clk 0:00:07]}  Qxf2+ {[%clk 0:00:01]} 35. Kxf2 {[%clk 0:00:07]}  b5 {[%clk 0:00:01]} 36. cxb5 {[%clk 0:00:08]}  Kf7 {[%clk 0:00:01]} 37. b6 {[%clk 0:00:08]}  Rb8 {[%clk 0:00:02]} 38. Ke3 {[%clk 0:00:07]}  Rb7 {[%clk 0:00:01]} 39. Kxe4 {[%clk 0:00:08]}  Ke7 {[%clk 0:00:02]} 40. Bc5+ {[%clk 0:00:08]}  Kd7 {[%clk 0:00:02]} 41. Ke5 {[%clk 0:00:08]}  Rb8 {[%clk 0:00:03]} 42. Bd4 {[%clk 0:00:08]}  Re8 {[%clk 0:00:03]} 43. b5 {[%clk 0:00:08]}  h5 {[%clk 0:00:04]} 44. Bc5 {[%clk 0:00:08]}  g5 {[%clk 0:00:04]} 45. g4 {[%clk 0:00:08]}  hxg4 {[%clk 0:00:04]} 46. hxg4 {[%clk 0:00:09]}  Rh8 {[%clk 0:00:05]} 47. Nxg5 {[%clk 0:00:09]}  Rh4 {[%clk 0:00:05]} 48. Ne4 {[%clk 0:00:08]}  Rh1 {[%clk 0:00:04]} 49. Nf6+ {[%clk 0:00:09]}  Kc8 {[%clk 0:00:04]} 50. Kd6 {[%clk 0:00:09]}  Rh6 {[%clk 0:00:03]} 51. g5 {[%clk 0:00:09]}  Rg6 {[%clk 0:00:04]} 52. Be3 {[%clk 0:00:08]}  Kb7 {[%clk 0:00:04]} 53. Kc5 {[%clk 0:00:08]}  Rg7 {[%clk 0:00:03]} 54. d6 {[%clk 0:00:08]}  Rf7 {[%clk 0:00:04]} 55. Kd5 {[%clk 0:00:08]}  Rf8 {[%clk 0:00:03]} 56. Ke6 {[%clk 0:00:08]}  Rh8 {[%clk 0:00:02]} 57. g6 {[%clk 0:00:09]}  Rd8 {[%clk 0:00:00]} 58. g7 {[%clk 0:00:08]} 1-0